bitfinex-derivatives/quotes_SOLF0:USTF0_20250415
["timestamp","ask_amount","ask_price","bid_price","bid_amount"]
[1744745774618,7.85886666,127.81,127.79,0.05847288]
[1744745775015,7.8253,127.8,127.79,0.05847288]
[1744745776121,7.8274,127.77,127.74,31.46]
[1744745777126,7.88729593,127.77,127.74,31.51948294]
[1744745778323,7.88729593,127.77,127.75,7.8281]
[1744745778621,7.88729593,127.77,127.74,31.51948294]
[1744745779020,0.05989593,127.77,127.74,31.51948294]
[1744745779925,13.3888187,127.77,127.74,31.51948294]
[1744745780319,7.8284,127.75,127.74,31.51948294]
[1744745780916,7.8281,127.76,127.74,31.51948294]
[1744745781226,13.3888187,127.77,127.74,31.51948294]
[1744745782232,7.8284,127.75,127.74,31.51948294]
[1744745783336,7.8284,127.75,127.74,0.05948294]
[1744745786941,21.15732277,127.75,127.74,0.05948294]
[1744745788939,7.8281,127.76,127.74,0.05948294]
[1744745789640,7.8284,127.75,127.74,0.05948294]
[1744745791140,21.15732277,127.75,127.74,0.05948294]
[1744745791838,7.8302,127.72,127.71,31.46]
[1744745792043,13.32892277,127.73,127.68,31.46]
[1744745793145,7.8313,127.71,127.69,0.05001698]
[1744745794451,7.8314,127.7,127.69,0.05001698]
[1744745794742,0.05592202,127.72,127.69,7.88181698]
[1744745794944,0.05592202,127.72,127.69,0.05001698]
[1744745795144,7.88662202,127.72,127.69,0.05001698]
[1744745795446,7.88662202,127.72,127.7,7.8314]
[1744745796251,7.88662202,127.72,127.69,7.88171698]
[1744745796847,7.8309,127.71,127.69,7.88171698]
[1744745797952,7.88642202,127.72,127.7,7.8314]
[1744745799653,7.8308,127.71,127.69,7.88171698]
[1744745800851,0.05592202,127.72,127.69,0.05001698]
[1744745800852,7.8314,127.7,127.69,0.05001698]
[1744745801050,0.05592202,127.72,127.69,0.05001698]
[1744745802149,7.8309,127.71,127.69,7.88181698]
[1744745803448,7.88652202,127.72,127.69,7.88181698]
[1744745803648,7.88652202,127.72,127.7,7.8313]
[1744745805553,7.8308,127.71,127.69,7.88171698]
[1744745805854,0.05592202,127.72,127.69,0.05001698]
[1744745807348,7.8311,127.71,127.69,7.88171698]
[1744745808055,7.88642202,127.72,127.7,7.8314]
[1744745808754,0.05592202,127.72,127.71,7.8308]
[1744745810058,8.59148373,127.72,127.69,0.05001698]
[1744745810755,8.53556171,127.7,127.69,0.05001698]
[1744745811357,7.8314,127.7,127.69,0.05001698]
[1744745815563,13.4006071,127.72,127.66,31.44]
[1744745815863,13.34468508,127.72,127.66,31.44]
[1744745816061,13.34468508,127.72,127.68,7.8324]
[1744745816360,7.8318,127.7,127.68,7.8324]
[1744745816562,7.88930043,127.7,127.68,7.88618139]
[1744745818560,0.05750043,127.7,127.69,7.832]
[1744745818761,378.34468508,127.78,127.69,13.34468508]
[1744745819066,13.34468508,127.76,127.7,31.44]
[1744745819261,7.8299,127.73,127.7,31.44]
[1744745819764,7.87932514,127.73,127.71,7.8305]
[1744745820166,0.04942514,127.73,127.7,31.49043997]
[1744745820765,7.8305,127.72,127.7,7.88183997]
[1744745821971,0.04942514,127.73,127.71,31.44]
[1744745822871,0.04942514,127.73,127.71,39.2705]
[1744745825073,0.04942514,127.73,127.72,7.8302]
[1744745825773,378.34468508,127.78,127.74,7.8284]
[1744745825975,7.8276,127.77,127.74,7.8284]
[1744745826172,13.34468508,127.78,127.74,7.8284]
[1744745826670,7.8282,127.76,127.75,0.05382512]
[1744745830275,7.88442519,127.77,127.75,0.05382512]
[1744745830573,0.05692519,127.77,127.75,0.05382512]
[1744745830774,0.05692519,127.77,127.75,31.43382512]
[1744745831173,13.34468508,127.76,127.69,31.38]
[1744745831475,13.34468508,127.74,127.69,31.38]
[1744745831778,7.8306,127.72,127.69,39.2116]
[1744745832274,7.88342446,127.72,127.69,39.26445167]
[1744745833576,7.8309,127.71,127.69,39.26445167]
[1744745833778,0.05282446,127.72,127.69,39.26445167]
[1744745834378,7.88332446,127.72,127.69,39.26445167]
[1744745834579,0.05282446,127.72,127.69,31.43285167]
[1744745835180,0.05282446,127.72,127.71,7.8308]
[1744745835380,0.05282446,127.72,127.71,16.36648944]
[1744745835775,16.36378944,127.76,127.73,7.8292]
[1744745835977,16.36378944,127.76,127.73,39.2092]
[1744745836376,16.36378944,127.76,127.74,7.8286]
[1744745836882,0.05287666,127.76,127.75,7.8284]
[1744745839287,13.32919913,127.82,127.78,7.8265]
[1744745839676,13.32919913,127.82,127.77,31.38]
[1744745839883,17.58849913,127.84,127.79,7.8255]
[1744745840278,7.8247,127.81,127.79,7.8255]
[1744745840480,7.8247,127.81,127.8,0.05019722]
[1744745840682,0.04303789,127.83,127.8,0.05019722]
[1744745840882,7.8246,127.82,127.8,0.05019722]
[1744745841485,7.8246,127.82,127.8,7.87529722]
[1744745843182,0.04303789,127.83,127.81,31.38]
[1744745845187,0.04303789,127.83,127.82,7.8241]
[1744745845984,0.04303789,127.83,127.81,31.38]
[1744745846486,7.86673789,127.83,127.81,31.38]
[1744745847388,0.04303789,127.83,127.81,39.2042]
[1744745847582,0.04303789,127.83,127.81,31.38]
[1744745848487,0.04303789,127.83,127.81,39.2044]
[1744745849087,7.86653789,127.83,127.81,39.2044]
[1744745849283,0.04303789,127.83,127.81,39.2044]
[1744745850389,7.86653789,127.83,127.81,39.2044]
[1744745850882,0.04303789,127.83,127.81,39.2044]
[1744745852591,0.04303789,127.83,127.82,7.8241]
[1744745852790,13.37223702,127.83,127.8,0.05019722]
[1744745853788,21.15389913,127.81,127.8,0.05019722]
[1744745853988,13.32919913,127.81,127.75,31.36]
[1744745854182,13.32919913,127.79,127.75,31.36]
[1744745854386,7.8278,127.76,127.75,31.36]
[1744745858195,7.8284,127.75,127.74,0.0526276]
[1744745868306,16.36170247,127.75,127.74,0.0526276]
[1744745869411,7.8284,127.75,127.74,0.0526276]
[1744745871405,7.8281,127.76,127.75,7.8284]
[1744745872111,7.88345257,127.77,127.74,7.8812276]
[1744745872410,0.05595257,127.77,127.74,7.8812276]
[1744745872909,7.8281,127.76,127.74,7.8812276]
[1744745873403,7.8284,127.75,127.74,0.0526276]
[1744745880410,8.58925504,127.77,127.74,7.8816276]
[1744745880618,7.8281,127.76,127.74,7.8816276]
[1744745882222,7.8284,127.75,127.74,0.0526276]
[1744745883416,7.8281,127.76,127.74,7.8816276]
[1744745884418,7.8284,127.75,127.74,7.8816276]
[1744745885417,7.8279,127.76,127.74,7.8816276]
[1744745886216,7.8284,127.75,127.74,0.0526276]
[1744745888019,7.8281,127.76,127.74,0.0526276]
[1744745889119,7.8281,127.76,127.74,7.8815276]
[1744745889519,7.8284,127.75,127.74,0.0526276]
[1744745892824,8.58925504,127.77,127.74,0.0526276]
[1744745893119,0.05595257,127.77,127.74,0.0526276]
[1744745893622,0.05595257,127.77,127.75,7.8279]
[1744745894122,0.05595257,127.77,127.74,0.0526276]
[1744745894824,7.88345257,127.77,127.74,0.0526276]
[1744745895422,7.88345257,127.77,127.75,7.8281]
[1744745896922,0.05595257,127.77,127.74,8.58593007]
[1744745898122,0.05595257,127.77,127.75,8.53330247]
[1744745898624,0.05595257,127.77,127.76,7.8278]
[1744745901626,7.88305257,127.77,127.75,7.8281]
[1744745903228,0.05595257,127.77,127.74,0.0526276]
[1744745904030,0.05595257,127.77,127.74,8.58593007]
[1744745906533,0.05595257,127.77,127.76,7.8278]
[1744745911638,7.88335257,127.77,127.75,7.828]
[1744745912139,0.05595257,127.77,127.75,7.828]
[1744745912439,0.05595257,127.77,127.74,8.58593007]
[1744745913244,0.05595257,127.77,127.75,7.8279]
[1744745915739,0.05595257,127.77,127.74,8.58593007]
[1744745916039,0.05595257,127.77,127.75,8.53330247]
[1744745916239,0.05595257,127.77,127.76,39.75330247]
[1744745916641,0.05595257,127.77,127.76,47.58110247]
[1744745917535,7.825,127.81,127.79,7.8255]
[1744745917741,7.825,127.81,127.79,39.0455]
[1744745918538,7.86228254,127.81,127.79,39.0987799]
[1744745918836,0.03728254,127.81,127.8,7.8253]
[1744745921446,0.03728254,127.81,127.8,16.35860247]
[1744745922039,7.8227,127.85,127.82,7.8238]
[1744745922444,7.8227,127.85,127.83,31.22]
[1744745922845,7.8227,127.85,127.83,31.27184938]
[1744745923447,7.8227,127.85,127.83,39.09524938]
[1744745923846,7.8227,127.85,127.83,31.27184938]
[1744745924546,7.8227,127.85,127.83,39.09534938]
[1744745926248,7.8227,127.85,127.83,31.27184938]
[1744745928752,7.8229,127.84,127.83,31.27184938]
[1744745931653,7.8218,127.86,127.83,31.27184938]
[1744745931854,8.53330247,127.87,127.83,31.27184938]
[1744745932056,7.8229,127.84,127.83,31.27184938]
[1744745932750,7.8247,127.81,127.8,31.2]
[1744745935464,0.05184938,127.82,127.8,39.0253]
[1744745935862,0.05184938,127.82,127.8,39.73330247]
[1744745936768,0.05184938,127.82,127.81,8.53330247]
[1744745936971,0.05184938,127.82,127.81,16.35800247]
[1744745943777,4.938e-05,127.82,127.81,16.35800247]
[1744745943975,2.0622,127.88,127.85,7.8218]
[1744745944176,8.53330247,127.87,127.86,31.2]
[1744745944375,7.8218,127.86,127.84,31.2]
[1744745945076,7.8218,127.86,127.84,31.25510806]
[1744745946980,7.8218,127.86,127.84,39.07790806]
[1744745949076,16.35470247,127.87,127.84,39.07790806]
[1744745949282,8.53330247,127.89,127.84,39.78841053]
[1744745949483,8.53330247,127.88,127.85,0.05197815]
[1744745949683,16.35410247,127.88,127.86,7.8213]
[1744745949883,8.53330247,127.88,127.85,0.05197815]
[1744745950082,8.53330247,127.86,127.85,0.05197815]
[1744745952986,16.35490247,127.86,127.85,0.05197815]
[1744745953687,8.53330247,127.86,127.85,0.05197815]
[1744745954182,7.8214,127.87,127.85,0.05197815]
[1744745955289,8.53330247,127.88,127.85,0.05197815]
[1744745956486,7.821,127.87,127.85,0.05197815]
[1744745958893,7.8216,127.86,127.85,0.05197815]
[1744745959488,7.8214,127.87,127.85,0.05197815]
[1744745960288,16.35400247,127.88,127.85,0.05197815]
[1744745960590,7.8207,127.88,127.85,0.05197815]
[1744745960781,8.53330247,127.9,127.85,0.05197815]
[1744745961087,7.8205,127.88,127.86,7.8213]
[1744745961289,7.8205,127.88,127.87,31.16]
[1744745963387,16.35380247,127.88,127.87,31.16]
[1744745967483,7.8205,127.88,127.87,31.16]
[1744745967787,7.8201,127.89,127.87,31.16]
[1744745968084,8.53330247,127.9,127.87,31.16]
[1744745969487,7.8204,127.88,127.87,31.16]
[1744745974188,16.35370247,127.88,127.87,31.16]
[1744745976390,16.35370247,127.88,127.85,0.05197815]
[1744745976391,7.8216,127.86,127.85,0.05197815]
[1744745978791,7.8216,127.86,127.85,31.15197815]
[1744745981494,16.35400247,127.88,127.86,7.8215]
[1744745981691,8.53330247,127.91,127.86,8.53330247]
[1744745981898,8.53330247,127.91,127.87,0.05667956]
[1744745982094,8.53330247,127.9,127.87,0.05667956]
[1744745983294,8.53330247,127.89,127.87,0.05667956]
[1744745983795,7.8204,127.88,127.87,0.05667956]
[1744745990894,31.1,127.94,127.87,0.05667956]
[1744745990895,15.6313,127.96,127.87,8.58998203]
[1744745991102,8.53330247,127.95,127.9,0.05662175]
[1744745991394,8.53330247,127.95,127.91,0.05407288]
[1744745991600,7.8171,127.94,127.91,7.87267288]
[1744745991796,8.53330247,127.95,127.91,0.05407288]
[1744745991997,7.8174,127.93,127.91,0.05407288]
[1744745993201,7.8174,127.93,127.91,7.87267288]
[1744745999201,7.8174,127.93,127.91,0.05407288]
[1744746000202,7.818,127.92,127.91,0.05407288]
[1744746000404,16.35130247,127.92,127.91,0.05407288]
[1744746001007,7.8204,127.89,127.85,2.0458]
[1744746001207,8.53330247,127.89,127.85,33.1258]
[1744746001410,8.53330247,127.9,127.85,33.1258]
[1744746001708,8.53330247,127.9,127.85,41.65910247]
[1744746002010,7.87417288,127.89,127.87,7.8209]
[1744746002204,0.05407288,127.89,127.88,31.08]
[1744746002399,8.58737535,127.89,127.86,0.05727391]
[1744746002599,8.53330247,127.87,127.86,0.05727391]
[1744746003112,16.35430247,127.87,127.86,0.05727391]
[1744746004012,16.35380247,127.88,127.86,7.87887391]
[1744746004320,8.58737535,127.89,127.86,0.05727391]
[1744746004513,7.8209,127.88,127.86,0.05727391]
[1744746005219,7.8209,127.88,127.86,7.87887391]
[1744746008821,7.87417288,127.89,127.87,7.8209]
[1744746009424,7.87417288,127.89,127.86,16.41187638]
[1744746009623,7.8205,127.88,127.86,16.41187638]
[1744746009819,0.05407288,127.89,127.86,16.41187638]
[1744746010325,7.87417288,127.89,127.86,16.41187638]
[1744746011027,0.05407288,127.89,127.86,0.05727391]
[1744746011925,7.821,127.87,127.86,0.05727391]
[1744746012825,7.8208,127.88,127.86,0.05727391]
[1744746013127,7.8208,127.88,127.86,7.87887391]
[1744746013528,7.87407288,127.89,127.86,0.05727391]
[1744746014128,7.87407288,127.89,127.86,7.87847391]
[1744746014430,7.8205,127.88,127.86,7.87847391]
[1744746015129,7.87417288,127.89,127.87,7.821]
[1744746015526,0.05407288,127.89,127.86,0.05727391]
[1744746016429,7.87427288,127.89,127.86,7.87827391]
[1744746017333,7.87427288,127.89,127.87,7.8209]
[1744746018431,0.05407288,127.89,127.88,38.8604]
[1744746018627,8.53330247,127.93,127.88,31.04]
[1744746018829,8.53330247,127.91,127.88,31.04]
[1744746019223,7.8198,127.89,127.88,31.04]
[1744746020535,16.35310247,127.89,127.88,31.04]
[1744746020830,8.53330247,127.89,127.87,0.05837557]
[1744746021128,8.53330247,127.88,127.87,0.05837557]
[1744746021332,16.35370247,127.88,127.87,0.05837557]
[1744746024739,16.35370247,127.88,127.87,7.557e-05]
[1744746027333,7.8222,127.85,127.84,31.04]
[1744746027533,8.53330247,127.85,127.78,10.65230247]
[1744746027836,8.53330247,127.83,127.78,8.53330247]
[1744746028338,0.05313608,127.82,127.79,0.0580107]
[1744746028538,0.05313608,127.82,127.81,8.53330247]
[1744746028838,0.05313608,127.82,127.81,47.39800247]
[1744746030134,8.53330247,127.87,127.83,7.8231]
[1744746030739,7.8218,127.86,127.83,7.8231]
[1744746030935,8.53330247,127.87,127.82,8.53330247]
[1744746031139,10.70860247,127.88,127.83,8.58445818]
[1744746031343,7.8214,127.87,127.84,39.57330247]
[1744746031639,7.8214,127.87,127.84,47.44632581]
[1744746031838,8.53330247,127.89,127.84,47.44632581]
[1744746032543,7.8215,127.87,127.84,47.44632581]
[1744746032732,8.53330247,127.9,127.85,8.53330247]
[1744746032938,8.53330247,127.9,127.86,0.05282209]
[1744746033641,7.821,127.87,127.86,0.05282209]
[1744746034242,8.53330247,127.91,127.86,8.58612456]
[1744746034443,8.53330247,127.92,127.87,39.57330247]
[1744746034644,8.53330247,127.92,127.88,0.05914506]
[1744746036143,7.8198,127.89,127.88,0.05914506]
[1744746040142,2.0384,127.93,127.8,562.96]
[1744746040143,7.8238,127.83,127.8,570.785]
[1744746040344,8.53330247,127.81,127.79,31.0]
[1744746040740,16.35830247,127.81,127.79,31.0]
[1744746041347,16.41408115,127.81,127.79,31.05811959]
[1744746041646,8.58908115,127.81,127.79,31.05811959]
[1744746042249,0.05577868,127.81,127.79,31.05811959]
[1744746042947,0.05577868,127.81,127.8,7.8253]
[1744746046050,7.8225,127.85,127.83,7.8233]
[1744746046946,7.822,127.86,127.84,7.8228]
[1744746047250,7.822,127.86,127.84,0.0541437]
[1744746047646,7.822,127.86,127.84,7.8768437]
[1744746048048,7.822,127.86,127.84,0.0541437]
[1744746048249,7.8212,127.87,127.84,0.0541437]
[1744746048451,7.8212,127.87,127.84,8.58744617]
[1744746048850,7.8212,127.87,127.85,31.0]
[1744746049548,7.8203,127.89,127.85,31.0]
[1744746050251,7.8203,127.89,127.86,7.8215]
[1744746050950,7.8195,127.9,127.87,7.8209]
[1744746051150,7.8195,127.9,127.87,7.8787861]
[1744746051361,2.0872,127.91,127.87,7.8787861]
[1744746052152,7.8199,127.89,127.87,7.8787861]
[1744746053654,35.24,127.93,127.88,7.8201]
[1744746055259,7.8195,127.9,127.87,7.8785861]
[1744746055451,13.30783117,127.92,127.87,0.0578861]
[1744746056755,7.8204,127.88,127.87,0.0578861]
[1744746057559,7.82,127.89,127.87,0.0578861]
[1744746060255,7.82,127.89,127.87,7.8788861]
[1744746060461,13.30783117,127.92,127.87,0.0578861]
[1744746060862,13.30783117,127.92,127.88,38.8201]
[1744746061161,13.30783117,127.92,127.88,31.0]
[1744746061661,7.8195,127.9,127.88,31.0]
[1744746062862,7.8198,127.89,127.88,31.0]
[1744746063462,13.30783117,127.92,127.88,31.0]
[1744746063463,7.8195,127.9,127.88,31.0]
[1744746065062,13.30783117,127.92,127.88,31.0]
[1744746065764,7.8195,127.9,127.88,38.8201]
[1744746066061,7.8195,127.9,127.88,31.0]
[1744746067660,13.30783117,127.92,127.88,38.82]
[1744746068960,7.8191,127.91,127.88,38.82]
[1744746069154,16.33249081,127.91,127.89,7.8198]
[1744746069357,16.33249081,127.91,127.88,31.0]
[1744746069654,16.33249081,127.91,127.88,38.82]
[1744746071462,7.8193,127.9,127.88,38.82]
[1744746071763,8.51339081,127.91,127.88,38.82]
[1744746071966,16.33229081,127.91,127.88,38.82]
[1744746073360,16.33229081,127.91,127.89,7.8198]
[1744746073562,7.8177,127.93,127.89,8.51339081]
[1744746073865,7.8177,127.93,127.88,31.0]
[1744746073866,8.51339081,127.97,127.91,8.51339081]
[1744746074063,7.8159,127.96,127.93,0.05647956]
[1744746074264,10.55489081,127.98,127.93,8.56987037]
[1744746074565,7.8159,127.96,127.93,7.87347956]
[1744746074766,7.8159,127.96,127.93,0.05647956]
[1744746074966,8.51339081,127.97,127.93,0.05647956]
[1744746075166,16.32879081,127.97,127.94,7.8165]
[1744746075966,7.8155,127.96,127.94,7.8165]
[1744746076864,8.51339081,127.98,127.93,8.56987037]
[1744746077160,39.45339081,128.0,127.95,8.51339081]
[1744746077357,8.51339081,128.0,127.96,0.05109518]
[1744746077666,7.8138,127.99,127.96,7.86649518]
[1744746078366,7.8144,127.98,127.96,0.05109518]
[1744746079269,8.51339081,128.0,127.96,7.86649518]
[1744746079463,8.51339081,127.99,127.96,7.86649518]
[1744746080169,7.8146,127.98,127.96,0.05109518]
[1744746080767,7.8146,127.98,127.96,7.86629518]
[1744746080968,7.8139,127.99,127.96,8.56448599]
[1744746081968,7.8139,127.99,127.96,16.37968599]
[1744746082268,8.51339081,127.97,127.96,0.05109518]
[1744746082471,8.51339081,127.97,127.91,30.92]
[1744746082668,8.51339081,127.94,127.91,30.92]
[1744746082966,7.8176,127.93,127.91,30.92]
[1744746083166,8.51339081,127.94,127.91,38.7383]
[1744746083358,8.51339081,127.95,127.91,38.7383]
[1744746083560,7.87658969,127.94,127.92,0.0545401]
[1744746083959,0.05938969,127.94,127.92,0.0545401]
[1744746084165,0.05938969,127.94,127.92,7.8721401]
[1744746084570,7.87618969,127.94,127.92,7.8721401]
[1744746084970,7.87618969,127.94,127.92,0.0545401]
[1744746088973,7.87618969,127.94,127.92,7.8724401]
[1744746090176,7.87618969,127.94,127.92,0.0545401]
[1744746090670,7.8174,127.93,127.92,0.0545401]
[1744746092776,7.87648969,127.94,127.92,0.0545401]
[1744746093077,0.05938969,127.94,127.92,0.0545401]
[1744746093875,7.8174,127.93,127.92,0.0545401]
[1744746094179,0.05938969,127.94,127.92,0.0545401]
[1744746094477,7.87658969,127.94,127.92,0.0545401]
[1744746095173,0.05938969,127.94,127.92,0.0545401]
[1744746095773,0.05938969,127.94,127.93,7.8174]
[1744746097971,7.814,127.99,127.96,7.8153]
[1744746098175,7.814,127.99,127.96,30.92]
[1744746098475,2.0322,128.02,127.96,30.92]
[1744746098875,7.8126,128.01,127.98,7.86414491]
[1744746099876,2.0322,128.02,127.98,0.05024491]
[1744746100882,7.8137,127.99,127.98,0.05024491]
[1744746105285,16.3177666,127.99,127.98,0.05024491]
[1744746107780,7.8149,127.97,127.96,30.92]
[1744746107985,8.5040666,127.97,127.89,567.0674]
[1744746108279,7.818,127.92,127.9,30.88]
[1744746108686,0.05055627,127.92,127.9,38.75626049]
[1744746108885,0.05055627,127.92,127.9,30.93736049]
[1744746109079,0.05055627,127.92,127.91,8.5040666]
[1744746109380,0.05055627,127.92,127.91,16.3226666]
[1744746111083,0.05055627,127.92,127.91,7.8186]
[1744746113387,0.05055627,127.92,127.91,38.6986]
[1744746114784,7.86855627,127.92,127.91,30.88]
[1744746114989,16.37262287,127.92,127.91,30.88]
[1744746116892,8.55462287,127.92,127.9,0.05736049]
[1744746117094,8.5040666,127.91,127.87,30.88]
[1744746117288,8.5040666,127.88,127.87,30.88]
[1744746117701,16.3244666,127.88,127.87,30.88]
[1744746118394,16.37881547,127.89,127.87,30.88]
[1744746118597,0.05464887,127.89,127.88,7.8204]
[1744746123600,0.05464887,127.89,127.87,38.7007]
[1744746123906,0.05464887,127.89,127.87,30.88]
[1744746124506,7.87484887,127.89,127.87,30.88]
[1744746125805,7.8204,127.88,127.87,30.88]
[1744746126006,0.05464887,127.89,127.87,38.701]
[1744746127400,7.87474887,127.89,127.87,38.701]
[1744746127706,0.05464887,127.89,127.87,30.88]
[1744746128101,7.8204,127.88,127.87,30.88]
[1744746130111,7.821,127.87,127.86,0.05124094]
[1744746131405,7.8207,127.88,127.86,0.05124094]
[1744746131612,0.05464887,127.89,127.86,0.05124094]
[1744746132006,7.821,127.87,127.86,0.05124094]
[1744746132612,13.29978984,127.88,127.81,30.84]
[1744746132812,13.29978984,127.85,127.81,30.84]
[1744746133312,7.8241,127.82,127.81,30.84]
[1744746134414,7.8247,127.81,127.8,0.0581751]
[1744746134615,21.12448984,127.81,127.8,0.0581751]
[1744746140516,7.8247,127.81,127.8,0.0581751]
[1744746142319,21.12448984,127.81,127.8,0.0581751]
[1744746146026,13.29978984,127.81,127.75,38.6881]
[1744746146521,2.1296,127.84,127.77,13.29978984]
[1744746146824,13.29978984,127.85,127.77,13.29978984]
[1744746147022,7.88273304,127.82,127.8,0.05607906]
[1744746147323,0.05863304,127.82,127.8,0.05607906]
[1744746147720,7.8247,127.81,127.8,0.05607906]
[1744746148019,21.12448984,127.81,127.8,0.05607906]
[1744746153123,7.8247,127.81,127.8,0.05607906]
[1744746153429,16.35380271,127.81,127.8,0.05607906]
[1744746155228,16.41203575,127.82,127.8,0.05607906]
[1744746155427,7.88293304,127.82,127.8,0.05607906]
[1744746157429,16.41203575,127.82,127.8,0.05607906]
[1744746157628,7.8247,127.81,127.8,0.05607906]
[1744746159430,16.41213575,127.82,127.8,0.05607906]
[1744746159627,7.88303304,127.82,127.8,7.88097906]
[1744746159828,0.05863304,127.82,127.8,7.88097906]
[1744746160228,7.88293304,127.82,127.8,7.88097906]
[1744746160733,7.8247,127.81,127.8,0.05607906]
[1744746161432,0.05863304,127.82,127.8,0.05607906]
[1744746161833,0.05863304,127.82,127.81,30.82]
[1744746162734,7.88273304,127.82,127.81,30.82]
[1744746163535,0.05863304,127.82,127.81,38.6447]
[1744746164033,0.05863304,127.82,127.81,30.82]
[1744746166636,7.88273304,127.82,127.81,30.82]
[1744746167035,0.05863304,127.82,127.81,30.82]
[1744746168938,7.88273304,127.82,127.81,30.82]
[1744746169739,0.05863304,127.82,127.81,30.82]
[1744746171238,16.41183575,127.82,127.81,30.82]
[1744746173539,0.05863304,127.82,127.81,30.82]
[1744746175142,7.88273304,127.82,127.81,30.82]
[1744746180852,0.05863304,127.82,127.81,30.82]
[1744746181150,8.52910271,127.85,127.81,30.82]
[1744746181349,7.8227,127.85,127.82,7.8238]
[1744746181950,7.8232,127.84,127.82,0.05211744]
[1744746182848,0.05292513,127.85,127.82,8.58122015]
[1744746183143,8.52910271,127.84,127.82,0.05211744]
[1744746183450,16.35260271,127.83,127.82,0.05211744]
[1744746184154,7.8259,127.79,127.78,30.82]
[1744746184357,16.35500271,127.79,127.78,30.82]
[1744746184745,8.52910271,127.79,127.78,30.82]
[1744746186247,16.35500271,127.79,127.78,30.82]
[1744746189055,7.8265,127.78,127.77,0.05365161]
[1744746189355,16.35560271,127.78,127.77,0.05365161]
[1744746194452,8.52910271,127.79,127.77,0.05365161]
[1744746194659,0.05793455,127.8,127.79,7.8259]
[1744746194859,8.52910271,127.84,127.79,8.52910271]
[1744746195058,8.52910271,127.84,127.78,30.78]
[1744746195059,7.8227,127.85,127.8,8.52910271]
[1744746195258,7.8227,127.85,127.81,39.30910271]
[1744746195559,7.8227,127.85,127.82,30.78]
[1744746195760,7.8227,127.85,127.83,7.8233]
[1744746196058,7.8227,127.85,127.83,7.87936908]
[1744746196059,7.88241572,127.85,127.83,7.87936908]
[1744746196658,0.05971572,127.85,127.84,7.8229]
[1744746196861,0.05971572,127.85,127.84,16.35200271]
[1744746197058,0.05971572,127.85,127.84,7.8229]
[1744746197863,4.0923,127.92,127.84,8.52910271]
[1744746198058,8.52910271,127.9,127.85,39.30910271]
[1744746198561,7.82,127.89,127.86,7.8214]
[1744746198761,32.78,127.94,127.87,8.52910271]
[1744746198762,8.52910271,127.91,127.87,8.52910271]
[1744746199063,0.05580185,127.89,127.88,30.78]
[1744746199366,0.05860404,127.9,127.88,38.6004]
[1744746199661,7.87780404,127.9,127.88,30.78]
[1744746199961,8.58770675,127.9,127.88,30.78]
[1744746200163,8.58770675,127.9,127.87,0.04965207]
[1744746200356,16.40720675,127.9,127.87,7.87045207]
[1744746201063,0.05860404,127.9,127.88,7.82]
[1744746201263,0.05860404,127.9,127.88,38.6]
[1744746201564,0.05860404,127.9,127.89,7.8198]
[1744746203465,0.05860404,127.9,127.88,49.27600271]
[1744746204663,0.05860404,127.9,127.89,7.8198]
[1744746208265,8.52910271,127.95,127.89,8.52910271]
[1744746208466,8.52910271,127.95,127.9,8.52910271]
[1744746208671,7.8172,127.94,127.91,30.76]
[1744746209170,7.85176289,127.94,127.91,30.81526829]
[1744746209366,7.8174,127.93,127.91,38.63346829]
[1744746210571,8.5636656,127.94,127.91,30.81526829]
[1744746211070,7.8174,127.93,127.91,30.81526829]
[1744746212170,7.8174,127.93,127.91,38.63386829]
[1744746212872,7.818,127.92,127.91,30.81526829]
[1744746213272,8.52910271,127.92,127.86,562.98]
[1744746213471,30.79456289,127.94,127.86,593.74]
[1744746213472,16.34980271,127.88,127.86,593.74]
[1744746213671,16.34980271,127.88,127.86,30.76]
[1744746213870,8.52910271,127.88,127.86,38.5816]
[1744746214068,16.34920271,127.89,127.86,38.5816]
[1744746214267,16.40074368,127.89,127.86,38.63702505]
[1744746217276,16.40074368,127.89,127.87,7.821]
[1744746217477,16.40074368,127.89,127.86,30.81542505]
[1744746217876,16.40074368,127.89,127.86,38.63652505]
[1744746218176,0.05154097,127.89,127.86,30.81542505]
[1744746218481,0.05154097,127.89,127.87,7.8207]
[1744746218971,7.87164097,127.89,127.86,30.81542505]
[1744746219776,7.87164097,127.89,127.86,38.63672505]